fUSD/lending_fUSD_20250313
["ID","MTS","AMOUNT","RATE_DAILY","PERIOD"]
[356106378,1741909869314,-573.45,0.00025109,3]
[356106379,1741909869323,-4252.22,0.00025109,3]
[356106380,1741909869332,-1350.01,0.00025109,3]
[356106381,1741909869341,-500.0,0.00025109,3]
[356106382,1741909869350,-411.42891779,0.00025109,3]
[356106383,1741909869359,-500.0,0.00025109,3]
[356106384,1741909869368,-957.24,0.00025109,3]
[356106385,1741909869377,-813.96,0.00025109,3]
[356106386,1741909869387,-526.08789439,0.00025109,3]
[356106387,1741909869396,-500.0,0.00025109,3]
[356106388,1741909869406,-659.78,0.00025109,3]
[356106389,1741909869415,-666.36,0.00025109,3]
[356106390,1741909869424,-500.0,0.00025109,3]
[356106391,1741909869435,-500.0,0.00025109,3]
[356106392,1741909869445,-1214.54,0.00025109,3]
[356106393,1741909869454,-500.0,0.00025109,3]
[356106394,1741909869464,-500.0,0.00025109,3]
[356106395,1741909869475,-740.67,0.00025109,3]
[356106396,1741909869484,-500.0,0.00025109,3]
[356106397,1741909869493,-1011.7,0.00025109,3]
[356106398,1741909869502,-500.0,0.00025109,3]
[356106399,1741909869512,-500.0,0.00025109,3]
[356106400,1741909869521,-1446.01,0.00025109,3]
[356106401,1741909869531,-509.81,0.00025109,3]
[356106402,1741909869540,-500.0,0.00025109,3]
[356106403,1741909869549,-506.61,0.00025109,3]
[356106404,1741909869559,-1624.15,0.00025109,3]
[356106405,1741909869569,-1714.12,0.00025109,3]
[356106406,1741909869578,-500.0,0.00025109,3]
[356106407,1741909869588,-513.91542659,0.00025109,3]
[356106408,1741909869597,-1542.57,0.00025109,3]
[356106409,1741909869606,-536.62596594,0.00025109,3]
[356106410,1741909869615,-679.28,0.00025109,3]
[356106411,1741909869625,-511.82,0.00025109,3]
[356106412,1741909869634,-732.6,0.00025109,3]
[356106413,1741909869643,-509.45,0.00025109,3]
[356106414,1741909869652,-528.56,0.00025109,3]
[356106415,1741909869661,-803.83,0.00025109,3]
[356106416,1741909869671,-500.0,0.00025109,3]
[356106417,1741909869680,-500.0,0.00025109,3]
[356106418,1741909869689,-500.0,0.00025109,3]
[356106419,1741909869699,-1621.13,0.00025109,3]
[356106420,1741909869709,-500.0,0.00025109,3]
[356106421,1741909869718,-684.37,0.00025109,3]
[356106422,1741909869728,-500.0,0.00025109,3]
[356106423,1741909869738,-578.23317211,0.00025109,3]
[356106424,1741909869748,-3776.5,0.00025109,3]
[356106425,1741909869758,-500.0,0.00025109,3]
[356106426,1741909869767,-500.0,0.00025109,3]
[356106427,1741909869777,-500.0,0.00025109,3]
[356106428,1741909869787,-568.39,0.00025109,3]
[356106429,1741909869796,-500.0,0.00025109,3]
[356106430,1741909869805,-500.0,0.00025109,3]
[356106431,1741909869814,-500.0,0.00025109,3]
[356106432,1741909869823,-500.0,0.00025109,3]
[356106433,1741909869833,-500.0,0.00025109,3]
[356106434,1741909869842,-1817.75,0.00025109,3]
[356106435,1741909869852,-1602.7,0.00025109,3]
[356106436,1741909869862,-500.0,0.00025109,3]
[356106437,1741909869871,-500.0,0.00025109,3]
[356106438,1741909869881,-938.17,0.00025109,3]
[356106439,1741909869890,-1921.94,0.00025109,3]
[356106440,1741909869900,-500.0,0.00025109,3]
[356106441,1741909869909,-500.0,0.00025109,3]
[356106442,1741909869919,-500.0,0.00025109,3]
[356106443,1741909869928,-515.11,0.00025109,3]
[356106444,1741909869938,-500.0,0.00025109,3]
[356106445,1741909869947,-500.0,0.00025109,3]
[356106446,1741909869957,-519.89,0.00025109,3]
[356106447,1741909869967,-547.45,0.00025109,3]
[356106448,1741909869976,-1144.38,0.00025109,3]
[356106449,1741909869986,-1019.22,0.00025109,3]
[356106450,1741909869995,-500.0,0.00025109,3]
[356106451,1741909870005,-500.0,0.00025109,3]
[356106452,1741909870014,-500.0,0.00025109,3]
[356106453,1741909870024,-501.97,0.00025109,3]
[356106454,1741909870034,-742.8,0.00025109,3]
[356106455,1741909870043,-500.0,0.00025109,3]
[356106456,1741909870213,-500.0,0.00025109,3]
[356106457,1741909870223,-947.29,0.00025109,3]
[356106458,1741909870232,-1068.83,0.00025109,3]
[356106459,1741909870241,-500.0,0.00025109,3]
[356106460,1741909870251,-500.0,0.00025109,3]
[356106461,1741909870261,-1182.53,0.00025109,3]
[356106462,1741909870270,-623.81404695,0.00025109,3]
[356106463,1741909870279,-500.0,0.00025109,3]
[356106464,1741909870289,-1076.88,0.00025109,3]
[356106465,1741909870298,-500.0,0.00025109,3]
[356106466,1741909870308,-2343.39047706,0.00025121,2]
[356106467,1741909870317,-1771.49,0.00025135,3]
[356106468,1741909870327,-500.0,0.00025135,3]
[356106469,1741909870337,-1290.76,0.00025135,3]
[356106470,1741909870346,-559.65,0.00025135,3]
[356106471,1741909870355,-500.0,0.00025135,3]
[356106472,1741909870365,-536.31259531,0.00025135,3]
[356106473,1741909870375,-1582.8,0.00025135,3]
[356106474,1741909870384,-500.0,0.00025135,3]
[356106475,1741909870394,-500.0,0.00025135,3]
[356106476,1741909870403,-500.0,0.00025135,3]
[356106477,1741909870412,-500.0,0.00025135,3]
[356106478,1741909870422,-628.37,0.00025135,3]
[356106479,1741909870435,-500.0,0.00025135,3]
[356106480,1741909870445,-3568.36,0.00025135,3]
[356106481,1741909870455,-500.0,0.00025135,3]
[356106482,1741909870465,-500.0,0.00025135,3]
[356106483,1741909870476,-534.48,0.00025135,3]
[356106484,1741909870485,-1267.72,0.00025135,3]
[356106485,1741909870494,-1652.9,0.00025135,3]
[356106486,1741909870503,-500.0,0.00025135,3]
[356106487,1741909870513,-2343.56,0.00025135,3]
[356106488,1741909870523,-534.22,0.00025135,3]
[356106489,1741909870532,-855.84,0.00025135,3]
[356106490,1741909870542,-2980.86,0.00025135,3]
[356106491,1741909870551,-1751.29,0.00025135,3]
[356106492,1741909870561,-521.41,0.00025135,3]
[356106493,1741909870571,-1817.04,0.00025135,3]
[356106494,1741909870581,-500.0,0.00025135,3]
[356106495,1741909870590,-500.0,0.00025135,3]
[356106496,1741909870600,-1529.79,0.00025135,3]
[356106497,1741909870609,-626.51,0.00025135,3]
[356106498,1741909870618,-1531.97,0.00025135,3]
[356106499,1741909870628,-500.0,0.00025135,3]
[356106500,1741909870638,-500.0,0.00025135,3]
[356106501,1741909870647,-551.96248097,0.00025135,3]
[356106502,1741909870656,-647.08,0.00025135,3]
[356106503,1741909870666,-1836.79,0.00025135,3]
[356106504,1741909870675,-500.0,0.00025135,3]
[356106505,1741909870685,-539.78712848,0.00025135,3]
[356106506,1741909870694,-569.98054806,0.00025135,3]
[356106507,1741909870704,-500.0,0.00025135,3]
[356106508,1741909870714,-767.63,0.00025135,3]
[356106509,1741909870723,-2784.94,0.00025135,3]
[356106510,1741909870732,-972.39,0.00025135,3]
[356106511,1741909870742,-500.0,0.00025135,3]
[356106512,1741909870751,-1153.097042,0.00025135,3]
[356106513,1741909870760,-950.08,0.00025135,3]
[356106514,1741909870769,-663.57,0.00025135,3]
[356106515,1741909870779,-638.89,0.00025135,3]
[356106516,1741909870788,-1612.27,0.00025135,3]
[356106517,1741909870798,-467.65905465,0.00025135,3]
[356106518,1741909870807,-1194.86,0.00025135,3]
[356106519,1741909870817,-366.121728,0.00025135,3]
[356106520,1741909870827,-866.68,0.00025135,3]
[356106521,1741909870836,-542.19,0.00025135,3]
[356106522,1741909870846,-500.0,0.00025135,3]
[356106523,1741909870855,-1909.43,0.00025135,3]
[356106524,1741909870864,-632.82,0.00025135,3]
[356106525,1741909870874,-153.80157,0.00025135,3]
[356106526,1741909870883,-503.16,0.00025135,3]
[356106527,1741909870892,-500.0,0.00025135,3]
[356106528,1741909870902,-152.872762,0.00025135,3]
[356106529,1741909870911,-957.65,0.00025135,3]
[356106530,1741909870920,-500.0,0.00025135,3]
[356106531,1741909870930,-500.0,0.00025135,3]
[356106532,1741909870939,-1718.94,0.00025135,3]
[356106533,1741909870949,-686.97,0.00025135,3]
[356106534,1741909870960,-593.31,0.00025135,3]
[356106535,1741909870970,-1023.55,0.00025135,3]
[356106536,1741909870979,-504.92000297,0.00025135,3]
[356106537,1741909870988,-1537.99,0.00025135,3]
[356106538,1741909870997,-705.12,0.00025135,3]
[356106539,1741909871007,-500.0,0.00025135,3]
[356106540,1741909871016,-500.0,0.00025135,3]
[356106541,1741909871025,-500.0,0.00025135,3]
[356106542,1741909871034,-2081.77,0.00025135,3]
[356106543,1741909871044,-595.3,0.00025135,3]
[356106544,1741909871053,-500.0,0.00025135,3]
[356106545,1741909871062,-581.8,0.00025135,3]
[356106546,1741909871072,-500.0,0.00025135,3]
[356106547,1741909871081,-2182.31,0.00025135,3]
[356106548,1741909871091,-500.0,0.00025135,3]
[356106549,1741909871100,-1551.28,0.00025135,3]
[356106550,1741909871109,-570.29900027,0.00025135,3]
[356106551,1741909871118,-500.0,0.00025135,3]
[356106552,1741909871128,-1223.35,0.00025135,3]
[356106553,1741909871138,-705.21,0.00025135,3]
[356106554,1741909871147,-500.0,0.00025135,3]
[356106555,1741909871156,-500.0,0.00025135,3]
[356106556,1741909871166,-513.62,0.00025135,3]
[356106557,1741909871176,-575.64,0.00025135,3]
[356106558,1741909871186,-2382.43,0.00025135,3]
[356106559,1741909871195,-1703.64,0.00025135,3]
[356106560,1741909871205,-500.0,0.00025135,3]
[356106561,1741909871214,-500.0,0.00025135,3]
[356106562,1741909871224,-1633.72,0.00025135,3]
[356106563,1741909871234,-500.0,0.00025135,3]
[356106564,1741909871243,-1670.95,0.00025135,3]
[356106565,1741909871252,-500.0,0.00025135,3]
[356106566,1741909871261,-3566.18,0.00025135,2]
[356106567,1741909871270,-500.0,0.00025135,3]
[356106568,1741909871279,-500.0,0.00025135,3]
[356106569,1741909871288,-2647.01,0.00025135,3]
[356106570,1741909871300,-1632.96,0.00025135,3]
[356106571,1741909871309,-694.85,0.00025135,3]
[356106572,1741909871320,-500.0,0.00025135,3]
[356106573,1741909871332,-1051.26,0.00025135,3]
[356106574,1741909871344,-1726.02,0.00025135,3]
[356106575,1741909871355,-703.55,0.00025135,3]
[356106576,1741909871366,-500.0,0.00025135,3]
[356106577,1741909871375,-1847.97,0.00025135,3]
[356106578,1741909871384,-500.0,0.00025135,3]
[356106579,1741909871393,-500.0,0.00025135,3]
[356106580,1741909871402,-1122.02,0.00025135,3]
[356106581,1741909871411,-1030.95,0.00025135,3]
[356106582,1741909871420,-500.0,0.00025135,3]
[356106583,1741909871432,-500.0,0.00025135,3]
[356106584,1741909871443,-547.84,0.00025135,3]
[356106585,1741909871452,-732.74,0.00025135,3]
[356106586,1741909871462,-500.0,0.00025135,3]
[356106587,1741909871471,-685.17,0.00025135,3]
[356106588,1741909871480,-500.0,0.00025135,3]
[356106589,1741909871489,-636.55,0.00025135,3]
[356106590,1741909871498,-500.0,0.00025135,3]
[356106591,1741909871509,-500.0,0.00025135,3]
[356106592,1741909871518,-760.24,0.00025135,3]
[356106593,1741909871527,-500.0,0.00025135,3]
[356106594,1741909871536,-666.39,0.00025135,3]
[356106595,1741909871545,-1136.63,0.00025135,3]
[356106596,1741909871554,-500.0,0.00025136,3]
[356106597,1741909871563,-500.0,0.00025136,3]
[356106598,1741909871573,-1821.49,0.00025136,3]
[356106599,1741909871582,-500.0,0.00025136,3]
[356106600,1741909871591,-534.21,0.00025136,3]
[356106601,1741909871601,-539.44403624,0.00025136,3]
[356106602,1741909871610,-624.82946194,0.00025136,3]
[356106603,1741909871620,-721.07,0.00025136,3]
[356106604,1741909871628,-500.0,0.00025136,3]
[356106605,1741909871638,-835.2,0.00025136,3]
[356106606,1741909871647,-500.0,0.00025136,3]
[356106607,1741909871656,-640.39,0.00025136,3]
[356106608,1741909871665,-1649.68,0.00025136,3]
[356106609,1741909871675,-500.0,0.00025136,3]
[356106610,1741909871684,-500.0,0.00025136,3]
[356106611,1741909871693,-602.71,0.00025136,3]
[356106612,1741909871702,-500.0,0.00025136,3]
[356106613,1741909871711,-500.0,0.00025136,3]
[356106614,1741909871720,-500.0,0.00025136,3]
[356106615,1741909871729,-500.0,0.00025136,3]
[356106616,1741909871740,-554.97358621,0.00025136,3]
[356106617,1741909871749,-571.03764828,0.00025136,3]
[356106618,1741909871758,-500.0,0.00025136,3]
[356106619,1741909871768,-500.0,0.00025136,3]
[356106620,1741909871778,-500.0,0.00025136,3]
[356106621,1741909871787,-363.544473,0.00025136,7]
[356106622,1741909871796,-363.544473,0.00025136,7]
[356106623,1741909871805,-604.05833568,0.00025136,3]
[356106624,1741909871815,-500.0,0.00025136,3]
[356106625,1741909871824,-717.27,0.00025136,3]
[356106626,1741909871834,-938.73,0.00025136,3]
[356106627,1741909871843,-1058.89,0.00025136,3]
[356106628,1741909871852,-942.53,0.00025136,3]
[356106629,1741909871861,-578.57,0.00025136,3]
[356106630,1741909871870,-909.28,0.00025136,3]
[356106631,1741909871879,-618.61,0.00025136,3]
[356106632,1741909871888,-500.0,0.00025136,3]
[356106633,1741909871897,-500.0,0.00025136,3]
[356106634,1741909871906,-500.0,0.00025136,3]
[356106635,1741909871916,-500.0,0.00025136,3]
[356106636,1741909871925,-500.0,0.00025136,3]
[356106637,1741909871934,-933.18,0.00025136,3]
[356106638,1741909871943,-500.0,0.00025136,3]
[356106639,1741909871952,-610.2,0.00025136,3]
[356106640,1741909871962,-191.184227,0.00025136,7]
[356106641,1741909871971,-500.0,0.00025136,3]
[356106642,1741909871981,-191.184227,0.00025136,7]
[356106643,1741909871990,-262.17523,0.00025136,7]
[356106644,1741909871999,-500.0,0.00025136,3]
[356106645,1741909872008,-262.17523,0.00025136,7]
[356106646,1741909872017,-157.966654,0.00025136,7]
[356106647,1741909872027,-157.966654,0.00025136,7]
[356106648,1741909872036,-157.966654,0.00025136,7]
[356106649,1741909872045,-500.0,0.00025136,3]
[356106650,1741909872055,-157.966654,0.00025136,7]
[356106651,1741909872064,-500.0,0.00025136,3]
[356106652,1741909872073,-500.0,0.00025136,3]
[356106653,1741909872082,-500.0,0.00025136,3]
[356106654,1741909872091,-500.0,0.00025136,3]
[356106655,1741909872101,-500.0,0.00025136,3]
[356106656,1741909872111,-500.0,0.00025136,3]
[356106657,1741909872121,-632.608609,0.00025136,7]
[356106658,1741909872135,-632.608609,0.00025136,7]
[356106659,1741909872144,-500.0,0.00025136,3]
[356106660,1741909872153,-632.608609,0.00025136,7]
[356106661,1741909872162,-632.608609,0.00025136,7]
[356106662,1741909872171,-500.0,0.00025136,3]
[356106663,1741909872180,-2202.251602,0.00025136,7]
[356106664,1741909872190,-500.0,0.00025136,3]
[356106665,1741909872198,-1597.02,0.00025136,3]
[356106666,1741909872208,-500.0,0.00025136,3]
[356106667,1741909872217,-2202.251602,0.00025136,7]
[356106668,1741909872226,-500.0,0.00025136,3]
[356106669,1741909872235,-500.0,0.00025136,3]
[356106670,1741909872245,-500.0,0.00025136,3]
[356106671,1741909872254,-1208.71,0.00025136,3]
[356106672,1741909872263,-500.0,0.00025136,3]
[356106673,1741909872272,-500.0,0.00025136,3]
[356106674,1741909872281,-961.24,0.00025136,3]
[356106675,1741909872291,-500.0,0.00025136,3]
[356106676,1741909872300,-500.0,0.00025136,3]
[356106677,1741909872309,-500.0,0.00025136,3]
[356106678,1741909872318,-500.0,0.00025136,3]
[356106679,1741909872327,-500.0,0.00025136,3]
[356106680,1741909872336,-945.98,0.00025136,3]
[356106681,1741909872345,-500.0,0.00025136,3]
[356106682,1741909872354,-500.0,0.00025136,3]
[356106683,1741909872363,-500.0,0.00025136,3]
[356106684,1741909872372,-157.37348529,0.00025136,3]
[356106685,1741909872381,-500.0,0.00025136,3]
[356106686,1741909872389,-500.0,0.00025136,3]
[356106687,1741909872398,-500.0,0.00025136,3]
[356106688,1741909872407,-599.05,0.00025136,3]
[356106689,1741909872416,-500.0,0.00025136,3]
[356106690,1741909872427,-500.0,0.00025136,3]
[356106691,1741909872439,-1322.8,0.00025136,3]
[356106692,1741909872448,-500.0,0.00025136,3]
[356106693,1741909872457,-500.0,0.00025136,3]
[356106694,1741909872466,-500.0,0.00025136,3]
[356106695,1741909872476,-500.0,0.00025136,3]
[356106696,1741909872485,-524.04,0.00025136,3]
[356106697,1741909872495,-500.0,0.00025136,3]
[356106698,1741909872657,-529.20679811,0.00025136,3]
[356106699,1741909872667,-500.0,0.00025136,3]
[356106700,1741909872676,-1162.99,0.00025136,3]
[356106701,1741909872686,-500.0,0.00025136,3]
[356106702,1741909872696,-1064.48,0.00025136,3]
[356106703,1741909872705,-500.0,0.00025136,3]
[356106704,1741909872715,-500.0,0.00025136,3]
[356106705,1741909872725,-2009.2,0.00025136,3]
[356106706,1741909872741,-569.35149608,0.00025136,3]
[356106707,1741909872750,-569.95119522,0.00025136,3]
[356106708,1741909872759,-1104.79,0.00025136,3]
[356106709,1741909872768,-1347.3,0.00025136,2]
[356106710,1741909872778,-500.0,0.00025136,3]
[356106711,1741909872787,-500.0,0.00025136,3]
[356106712,1741909872797,-1045.89,0.00025136,3]
[356106713,1741909872806,-500.0,0.00025136,3]
[356106714,1741909872816,-500.0,0.00025136,3]
[356106715,1741909872826,-500.0,0.00025136,3]
[356106716,1741909872835,-500.0,0.00025136,3]
[356106717,1741909872845,-1177.15,0.00025136,3]
[356106718,1741909872855,-1278.64,0.00025136,3]
[356106719,1741909872864,-500.0,0.00025136,3]
[356106720,1741909872873,-500.0,0.00025136,3]
[356106721,1741909872883,-1471.45,0.00025136,3]
[356106722,1741909872892,-500.0,0.00025136,3]
[356106723,1741909872903,-500.0,0.00025136,3]
[356106724,1741909872912,-500.0,0.00025136,3]
[356106725,1741909872922,-500.0,0.00025136,3]
[356106726,1741909872932,-552.42162938,0.00025136,3]
[356106727,1741909872942,-500.0,0.00025136,3]
[356106728,1741909872951,-500.0,0.00025136,3]
[356106729,1741909872963,-1032.31,0.00025136,3]
[356106730,1741909872972,-500.0,0.00025136,3]
[356106731,1741909872982,-500.0,0.00025136,3]
[356106732,1741909872992,-516.89,0.00025136,3]
[356106733,1741909873002,-1030.03,0.00025136,3]
[356106734,1741909873011,-500.0,0.00025136,3]
[356106735,1741909873021,-500.0,0.00025136,3]
[356106736,1741909873030,-500.0,0.00025136,3]
[356106737,1741909873040,-500.0,0.00025136,3]
[356106738,1741909873049,-500.0,0.00025136,3]
[356106739,1741909873059,-500.0,0.00025136,3]
[356106740,1741909873069,-500.0,0.00025136,3]
[356106741,1741909873078,-361.408255,0.00025136,7]
[356106742,1741909873088,-361.408255,0.00025136,7]
[356106743,1741909873102,-361.408255,0.00025136,7]
[356106744,1741909873112,-520.87,0.00025136,3]
[356106745,1741909873122,-361.408255,0.00025136,7]
[356106746,1741909873132,-583.44,0.00025136,3]
[356106747,1741909873142,-401.6902599,0.00025136,3]
[356106748,1741909873152,-500.0,0.00025136,3]
[356106749,1741909873162,-549.11,0.00025136,3]
[356106750,1741909873172,-531.32,0.00025136,3]
[356106751,1741909873182,-500.0,0.00025136,3]
[356106752,1741909873192,-500.0,0.00025136,3]
[356106753,1741909873203,-500.0,0.00025136,3]
[356106754,1741909873214,-500.0,0.00025136,3]
[356106755,1741909873224,-500.0,0.00025136,3]
[356106756,1741909873237,-500.0,0.00025136,3]
[356106757,1741909873249,-665.05,0.00025136,3]
[356106758,1741909873260,-500.0,0.00025136,2]
[356106759,1741909873270,-1886.33,0.00025136,3]
[356106760,1741909873280,-500.0,0.00025136,3]
[356106761,1741909873290,-500.0,0.00025136,3]
[356106762,1741909873300,-500.0,0.00025136,3]
[356106763,1741909873310,-500.0,0.00025136,3]
[356106764,1741909873320,-1603.3,0.00025136,3]
[356106765,1741909873329,-500.0,0.00025136,3]
[356106766,1741909873339,-1399.34,0.00025136,3]
[356106767,1741909873349,-507.55,0.00025136,3]
[356106768,1741909873359,-500.0,0.00025136,3]
[356106769,1741909873371,-500.0,0.00025136,3]
[356106770,1741909873380,-500.0,0.00025136,3]
[356106771,1741909873390,-500.0,0.00025136,3]
[356106772,1741909873399,-565.55451409,0.00025136,3]
[356106773,1741909873409,-500.0,0.00025136,3]
[356106774,1741909873418,-328.37883047,0.00025136,3]
[356106775,1741909873428,-500.0,0.00025136,3]
[356106776,1741909873442,-1162.37,0.00025136,3]
[356106777,1741909873452,-503.04,0.00025136,3]
[356106778,1741909873462,-637.46,0.00025136,3]
[356106779,1741909873472,-500.0,0.00025136,3]
[356106780,1741909873482,-500.0,0.00025136,3]
[356106781,1741909873492,-500.0,0.00025136,3]
[356106782,1741909873502,-500.0,0.00025136,3]
[356106783,1741909873513,-500.0,0.00025136,3]
[356106784,1741909873523,-500.0,0.00025136,3]
[356106785,1741909873533,-500.0,0.00025136,3]
[356106786,1741909873543,-500.0,0.00025136,3]
[356106787,1741909873552,-500.0,0.00025136,3]
[356106788,1741909873562,-1799.26,0.00025136,3]
[356106789,1741909873572,-1000.0,0.00025136,60]
[356106790,1741909873581,-500.0,0.00025136,3]
[356106791,1741909873591,-500.0,0.00025136,3]
[356106792,1741909873601,-500.0,0.00025136,3]
[356106793,1741909873611,-500.0,0.00025136,3]
[356106794,1741909873621,-500.0,0.00025136,3]
[356106795,1741909873631,-500.0,0.00025136,3]
[356106796,1741909873641,-1038.47,0.00025136,3]
[356106797,1741909873651,-500.0,0.00025136,3]
[356106798,1741909873660,-500.0,0.00025136,3]
[356106799,1741909873670,-1488.89,0.00025136,3]
[356106800,1741909873681,-509.79,0.00025136,3]
[356106801,1741909873690,-500.0,0.00025136,3]
[356106802,1741909873700,-540.3471664,0.00025136,3]
[356106803,1741909873710,-1529.19,0.00025136,3]
[356106804,1741909873720,-500.0,0.00025136,3]
[356106805,1741909873730,-500.0,0.00025136,3]
[356106806,1741909873740,-1146.19,0.00025136,3]
[356106807,1741909873749,-500.0,0.00025136,3]
[356106808,1741909873759,-500.0,0.00025136,3]
[356106809,1741909873769,-1616.56,0.00025136,3]
[356106810,1741909873779,-1230.07,0.00025136,3]
[356106811,1741909873789,-562.84931894,0.00025136,3]
[356106812,1741909873799,-500.0,0.00025136,3]
[356106813,1741909873809,-500.0,0.00025136,3]
[356106814,1741909873819,-500.0,0.00025136,3]
[356106815,1741909873830,-279.96400028,0.00025136,3]
[356106816,1741909873840,-500.0,0.00025136,3]
[356106817,1741909873850,-766.89,0.00025136,3]
[356106818,1741909873860,-500.0,0.00025136,3]
[356106819,1741909873871,-828.77,0.00025136,3]
[356106820,1741909873881,-503.06,0.00025136,3]
[356106821,1741909873891,-566.59,0.00025136,3]
[356106822,1741909873900,-500.0,0.00025136,3]
[356106823,1741909873910,-877.86,0.00025136,3]
[356106824,1741909873920,-547.53701142,0.00025136,3]
[356106825,1741909873930,-500.0,0.00025136,3]
[356106826,1741909873940,-1515.34,0.00025136,3]
[356106827,1741909873950,-500.0,0.00025136,3]
[356106828,1741909873960,-974.37,0.00025136,3]
[356106829,1741909873970,-878.52,0.00025136,3]
[356106830,1741909873981,-637.9,0.00025136,3]
[356106831,1741909873990,-500.0,0.00025136,3]
[356106832,1741909874000,-500.0,0.00025136,3]
[356106833,1741909874009,-500.0,0.00025136,3]
[356106834,1741909874019,-500.0,0.00025136,3]
[356106835,1741909874028,-500.0,0.00025136,3]
[356106836,1741909874038,-500.0,0.00025136,3]
[356106837,1741909874047,-500.0,0.00025136,3]
[356106838,1741909874057,-500.0,0.00025136,3]
[356106839,1741909874067,-500.0,0.00025136,3]
[356106840,1741909874076,-500.0,0.00025136,3]
[356106841,1741909874086,-581.67,0.00025136,3]
[356106842,1741909874095,-320.28725712,0.00025136,3]
[356106843,1741909874105,-1951.21,0.00025136,3]
[356106844,1741909874114,-500.0,0.00025136,3]
[356106845,1741909874124,-500.0,0.00025136,3]
[356106846,1741909874135,-500.0,0.00025136,3]
[356106847,1741909874144,-2023.2,0.00025136,3]
[356106848,1741909874154,-2022.67,0.00025136,3]
[356106849,1741909874164,-500.0,0.00025136,3]
[356106850,1741909874174,-1071.52,0.00025136,3]
[356106851,1741909874183,-500.0,0.00025136,3]
[356106852,1741909874193,-500.0,0.00025136,3]
[356106853,1741909874203,-1319.48,0.00025136,3]
[356106854,1741909874213,-1318.79,0.00025136,3]
[356106855,1741909874223,-817.82,0.00025136,3]
[356106856,1741909874233,-500.0,0.00025136,3]
[356106857,1741909874242,-1858.28,0.00025136,3]
[356106858,1741909874251,-500.0,0.00025136,3]
[356106859,1741909874261,-500.0,0.00025136,3]
[356106860,1741909874270,-500.0,0.00025136,3]
[356106861,1741909874280,-547.69925147,0.00025136,3]
[356106862,1741909874290,-1341.33,0.00025136,3]
[356106863,1741909874300,-500.0,0.00025136,3]
[356106864,1741909874310,-500.0,0.00025136,3]
[356106865,1741909874319,-500.0,0.00025136,3]
[356106866,1741909874329,-1345.3,0.00025136,3]
[356106867,1741909874339,-500.0,0.00025136,3]
[356106868,1741909874348,-500.0,0.00025136,3]
[356106869,1741909874358,-500.0,0.00025136,3]
[356106870,1741909874368,-500.0,0.00025136,2]
[356106871,1741909874377,-1005.07,0.00025136,3]
[356106872,1741909874387,-472.22912301,0.00025136,3]
[356106873,1741909874397,-2009.8,0.00025136,3]
[356106874,1741909874407,-761.68,0.00025136,3]
[356106875,1741909874417,-500.0,0.00025136,3]
[356106876,1741909874430,-500.0,0.00025136,3]
[356106877,1741909874439,-500.0,0.00025136,3]